bitfinex/quotes_ETHUSD_20250519
["timestamp","ask_amount","ask_price","bid_price","bid_amount"]
[1747677156732,3.97219463,2517.5,2517.4,8.7941]
[1747677156910,3.97219463,2517.5,2517.4,17.1411]
[1747677157234,3.97192546,2517.7,2517.4,9.62525579]
[1747677157402,3.97219463,2517.5,2517.4,17.97225579]
[1747677157597,3.97219463,2517.5,2517.4,8.0]
[1747677157798,3.97219463,2517.5,2517.4,16.347]
[1747677158132,3.97251022,2517.3,2517.2,25.499]
[1747677158300,3.97251022,2517.3,2517.2,17.152]
[1747677158695,3.97298371,2517.0,2516.9,0.45203508]
[1747677158910,3.97298371,2517.0,2516.9,8.79903508]
[1747677159522,3.97298371,2517.0,2516.9,0.45203508]
[1747677161819,3.97361519,2516.6,2516.5,8.0]
[1747677162145,3.97306686,2517.0,2516.5,26.85090206]
[1747677162322,3.97306686,2517.0,2516.5,22.87720776]
[1747677162937,3.97219463,2517.5,2516.5,22.87720776]
[1747677163248,3.97337996,2516.8,2516.5,18.94207]
[1747677163848,3.97361519,2516.6,2516.5,8.0]
[1747677164364,3.97336447,2516.8,2516.5,8.0]
[1747677164568,3.97346804,2516.7,2516.5,8.0]
[1747677164742,3.97361519,2516.6,2516.5,8.0]
[1747677165173,3.97353553,2516.7,2516.5,16.345]
[1747677165333,3.97338089,2516.8,2516.5,16.345]
[1747677165533,3.97348231,2516.7,2516.5,16.345]
[1747677165734,3.97361519,2516.6,2516.5,16.345]
[1747677166956,3.97361519,2516.6,2516.5,8.0]
[1747677167137,3.92353541,2516.7,2516.5,8.0]
[1747677167338,3.97320463,2516.9,2516.5,10.515]
[1747677167538,3.97361519,2516.6,2516.5,8.0]
[1747677168166,3.97354224,2516.7,2516.5,8.0]
[1747677168363,3.97251022,2517.3,2516.6,0.7904]
[1747677168564,3.97260925,2517.3,2516.9,8.0]
[1747677168776,3.97267894,2517.2,2517.0,8.345]
[1747677169466,14.11205792,2517.6,2517.0,16.345]
[1747677169653,3.97277365,2517.2,2517.0,8.345]
[1747677170954,3.97205792,2517.6,2517.0,8.345]
[1747677171167,3.97281564,2517.2,2517.0,8.345]
[1747677172275,3.97282587,2517.1,2517.0,8.345]
[1747677173899,3.97272881,2517.2,2517.0,8.345]
[1747677174102,3.97215016,2517.6,2517.1,8.805]
[1747677174416,3.97249861,2517.4,2517.1,8.805]
[1747677174589,3.97257663,2517.3,2517.1,8.805]
[1747677174790,3.97257663,2517.3,2517.2,1.72927382]
[1747677175473,3.97257663,2517.3,2516.8,0.7824]
[1747677175708,3.97297574,2517.1,2517.0,8.0]
[1747677176214,3.97297574,2517.1,2517.0,8.345]
[1747677176823,3.9734573,2516.7,2516.6,8.79703508]
[1747677177104,3.9734573,2516.7,2516.6,0.45203508]
[1747677179077,4.02312924,2516.7,2516.6,0.45203508]
[1747677179388,4.2758573,2516.7,2516.6,0.45203508]
[1747677180817,3.9734573,2516.7,2516.6,0.45203508]
[1747677181030,0.3024,2517.3,2516.6,0.45203508]
[1747677181320,17.00533101,2516.4,2516.3,0.59349353]
[1747677181524,25.10967529,2516.4,2516.3,0.59349353]
[1747677182389,25.10967529,2516.4,2515.7,1.07812]
[1747677182390,4.82727876,2515.8,2515.7,1.07812]
[1747677182616,8.76562304,2515.8,2515.7,1.07812]
[1747677182817,4.52551085,2515.4,2514.8,4.05052649]
[1747677183141,4.81668188,2515.4,2514.8,4.05052649]
[1747677185029,3.97551085,2515.4,2514.8,12.05052649]
[1747677185318,3.97551085,2515.4,2515.1,0.8172]
[1747677185697,3.97463019,2516.0,2515.3,4.14412348]
[1747677186035,3.9751197,2515.7,2515.3,4.14412348]
[1747677186317,3.97523053,2515.6,2515.3,4.14412348]
[1747677186481,3.97523053,2515.6,2515.4,1.24921235]
[1747677186683,3.97523053,2515.6,2515.4,0.84921235]
[1747677186911,3.97500756,2515.8,2515.4,0.84921235]
[1747677186912,3.97511445,2515.7,2515.4,0.84921235]
[1747677187530,3.97519959,2515.6,2515.4,0.84921235]
[1747677188826,3.97551085,2515.4,2515.3,11.69309407]
[1747677189518,4.02520595,2515.4,2515.3,3.69309407]
[1747677189747,4.57520595,2515.4,2515.3,3.69309407]
[1747677189931,4.52551085,2515.4,2515.3,3.69309407]
[1747677191549,4.82791085,2515.4,2515.3,3.69309407]
[1747677191777,12.82791085,2515.4,2515.3,3.69309407]
[1747677192606,4.82791085,2515.4,2515.3,3.69309407]
[1747677194248,4.27791085,2515.4,2515.3,3.69309407]
[1747677194545,3.97551085,2515.4,2515.3,3.69309407]
[1747677198655,3.97598505,2515.1,2515.0,8.346]
[1747677198950,3.97585876,2515.2,2514.0,4.78175544]
[1747677199116,3.97700711,2514.5,2514.1,8.346]
[1747677199316,3.97623613,2515.0,2514.1,8.346]
[1747677199645,3.97615539,2515.0,2514.6,8.0]
[1747677199962,3.97615539,2515.0,2514.7,9.1501]
[1747677200328,3.9756689,2515.3,2514.7,9.1501]
[1747677200523,3.97631586,2514.9,2514.7,9.1501]
[1747677200741,0.3024,2515.6,2514.7,9.1501]
[1747677200742,3.97615848,2515.0,2514.7,9.1501]
[1747677200943,3.97618356,2515.0,2514.7,9.1501]
[1747677201141,3.97644531,2514.9,2514.7,9.1501]
[1747677202354,3.97645936,2514.8,2514.7,9.1501]
[1747677202720,3.97645936,2514.8,2514.7,8.347]
[1747677202915,3.97583866,2515.2,2514.4,0.7608]
[1747677203228,3.97693378,2514.5,2514.4,0.7608]
[1747677203445,3.97693378,2514.5,2514.4,8.347]
[1747677203628,3.97756652,2514.1,2514.0,9.1078]
[1747677203847,3.97756652,2514.1,2514.0,8.347]
[1747677204163,3.97756652,2514.1,2513.3,3.97878371]
[1747677204164,3.97883261,2513.3,2513.2,0.06358962]
[1747677204456,3.9787556,2513.4,2513.2,0.39574886]
[1747677204752,3.97772474,2514.0,2513.3,9.1078]
[1747677204753,3.97843153,2513.6,2513.3,9.1078]
[1747677204958,3.97788297,2513.9,2513.3,0.7608]
[1747677205162,3.97867313,2513.5,2513.4,8.347]
[1747677205337,3.9786743,2513.4,2513.3,0.33214602]
[1747677205539,0.3024,2513.9,2513.3,0.7608]
[1747677205732,0.85204702,2514.1,2513.3,0.7608]
[1747677205936,3.97860734,2513.5,2513.4,8.347]
[1747677206344,3.97883261,2513.3,2513.2,0.06358962]
[1747677206640,3.97883261,2513.3,2513.2,8.41058962]
[1747677206953,3.97883261,2513.3,2513.2,0.06358962]
[1747677207870,0.3024,2513.9,2513.2,0.06358962]
[1747677208034,4.28031498,2513.9,2513.2,0.06358962]
[1747677208224,3.97870185,2513.4,2513.2,0.06358962]
[1747677208428,3.97827912,2513.7,2513.2,0.06358962]
[1747677208628,3.97848707,2513.6,2513.2,0.06358962]
[1747677208824,0.3024,2514.2,2513.2,0.06358962]
[1747677209052,0.62635185,2515.0,2513.7,3.97817917]
[1747677209251,0.33147405,2514.7,2513.9,4.81104863]
[1747677209458,0.33147405,2514.7,2513.9,0.8332]
[1747677209641,0.33147405,2514.7,2514.1,8.0]
[1747677209976,3.97717369,2514.4,2514.1,8.0]
[1747677210179,0.33147405,2514.3,2514.1,8.0]
[1747677211976,4.30873299,2514.3,2514.1,8.0]
[1747677212143,3.97740832,2514.2,2514.1,8.0]
[1747677212475,0.33147405,2514.2,2514.0,8.724]
[1747677212647,4.30903802,2514.2,2514.0,8.724]
[1747677212829,3.97756652,2514.1,2514.0,16.724]
[1747677213030,4.30904057,2514.1,2514.0,16.724]
[1747677213230,0.33147405,2514.1,2514.0,16.724]
[1747677214073,0.33147405,2514.1,2514.0,22.45744474]
[1747677214930,3.97560494,2515.4,2514.0,22.45744474]
[1747677214931,3.97613602,2515.1,2514.5,4.77798126]
[1747677215157,3.97613602,2515.1,2514.6,16.724]
[1747677215375,3.97538441,2515.5,2514.6,16.724]
[1747677215534,3.9758518,2515.2,2514.8,8.0]
[1747677215870,3.9758518,2515.2,2514.8,11.26772764]
[1747677216172,3.97600418,2515.1,2514.8,11.26772764]
[1747677216867,3.97725012,2514.3,2514.2,0.8012]
[1747677217167,3.97756652,2514.1,2514.0,8.723]
[1747677217647,4.27849124,2515.1,2514.0,8.723]
[1747677217848,0.3024,2515.1,2514.0,8.723]
[1747677218170,29.14663464,2515.4,2513.9,8.0]
[1747677218171,3.97772474,2514.0,2513.9,8.0]
[1747677218331,3.97755789,2514.2,2513.8,9.32636114]
[1747677218531,4.27939179,2514.5,2513.8,9.32636114]
[1747677218532,3.97699061,2514.5,2513.9,11.97787529]
[1747677218753,3.97709674,2514.4,2513.9,11.97787529]
[1747677219042,3.97741859,2514.2,2513.9,8.0]
[1747677219231,3.97753575,2514.2,2513.9,8.0]
[1747677219435,3.97764719,2514.1,2513.9,8.0]
[1747677219636,3.97747818,2514.2,2513.9,8.0]
[1747677219868,4.27871403,2514.9,2513.9,10.15024647]
[1747677219869,3.97724882,2514.4,2513.9,10.15024647]
[1747677220185,3.97712358,2514.4,2513.9,14.12802601]
[1747677220468,3.97697443,2514.5,2514.1,8.0]
[1747677220633,3.97531873,2515.6,2514.1,0.29097704]
[1747677220634,3.97613246,2515.1,2514.1,0.29097704]
[1747677220848,3.97707444,2514.5,2514.0,12.77095843]
[1747677221047,3.97707444,2514.5,2514.1,1.49212049]
[1747677221358,3.97701848,2514.5,2514.1,1.49212049]
[1747677221554,3.97716643,2514.4,2514.1,1.49212049]
[1747677221781,3.97693049,2514.6,2514.1,1.49212049]
[1747677221970,3.97670313,2514.7,2514.3,8.0]
[1747677222170,3.97686019,2514.6,2514.4,8.723]
[1747677222569,3.97693378,2514.5,2514.4,8.723]
[1747677222750,3.9768667,2514.6,2514.4,8.723]
[1747677222949,3.97693378,2514.5,2514.4,8.723]
[1747677223566,3.97740832,2514.2,2514.0,0.7933]
[1747677223781,3.97756652,2514.1,2514.0,8.7933]
[1747677223989,3.97756652,2514.1,2514.0,17.5163]
[1747677224153,3.97756652,2514.1,2514.0,9.5163]
[1747677225072,3.97756652,2514.1,2514.0,8.723]
[1747677225857,3.97706697,2514.5,2514.0,8.723]
[1747677226054,3.97624188,2515.0,2514.1,0.82]
[1747677226055,3.97716792,2514.4,2514.1,0.82]
[1747677226285,3.97716792,2514.4,2514.1,8.82]
[1747677226463,3.97700847,2514.5,2514.1,8.82]
[1747677226670,3.97700847,2514.5,2514.2,2.15207052]
[1747677226978,3.976988,2514.5,2514.2,2.15207052]
[1747677227360,3.97703586,2514.5,2514.2,2.15207052]
[1747677227561,3.97716442,2514.4,2514.2,2.15207052]
[1747677227780,3.97700001,2514.5,2514.2,2.15207052]
[1747677228303,3.97684006,2514.6,2514.2,2.15207052]
[1747677228515,3.97717476,2514.4,2514.2,10.87507052]
[1747677228884,3.97725012,2514.3,2514.2,18.87507052]
[1747677229180,3.97721208,2514.4,2514.2,18.87507052]
[1747677229886,3.97725012,2514.3,2514.2,18.87507052]
[1747677230085,3.9771596,2514.4,2514.2,18.87507052]
[1747677230285,3.97725012,2514.3,2514.2,10.15207052]
[1747677230487,3.97712798,2514.4,2514.2,16.723]
[1747677231107,3.97704882,2514.5,2514.2,16.723]
[1747677231411,3.97710287,2514.4,2514.2,16.723]
[1747677232028,3.97725012,2514.3,2514.2,16.723]
[1747677233172,3.97630124,2514.9,2514.2,16.723]
[1747677233382,3.97707814,2514.5,2514.2,16.723]
[1747677233722,3.97702864,2514.5,2514.2,16.723]
[1747677234089,3.9786743,2513.4,2513.3,0.60336114]
[1747677235992,3.9793076,2513.0,2512.7,8.723]
[1747677236594,3.97921952,2513.1,2512.9,0.97779603]
[1747677236918,3.97912968,2513.2,2512.9,1.94787563]
[1747677237092,3.97879743,2513.4,2512.9,1.94787563]
[1747677237297,8.0,2513.7,2512.9,1.94787563]
[1747677237734,3.97884004,2513.3,2512.9,1.94787563]
[1747677237938,3.97911223,2513.2,2512.9,1.94787563]
[1747677238300,3.97891422,2513.3,2512.9,1.94787563]
[1747677238637,12.70223343,2514.4,2513.0,4.57205155]
[1747677238638,3.97859309,2513.5,2513.0,4.57205155]
[1747677238827,4.27933378,2514.5,2513.1,0.8174]
[1747677239007,3.97709195,2514.4,2513.2,8.725]
[1747677239200,3.97846639,2513.6,2513.2,8.725]
[1747677239590,3.97906513,2513.2,2513.0,9.45374985]
[1747677239734,3.97906513,2513.2,2513.0,8.861]
[1747677239938,3.978853,2513.3,2513.0,8.861]
[1747677240110,3.97899092,2513.2,2513.0,8.861]
[1747677241038,3.97839259,2513.6,2513.0,8.861]
[1747677241200,3.97871932,2513.4,2513.0,8.861]
[1747677241400,3.97871932,2513.4,2513.1,1.30426342]
[1747677241637,3.97859437,2513.5,2513.1,1.30426342]
[1747677241826,3.97859437,2513.5,2513.1,9.30426342]
[1747677242137,3.978834,2513.3,2513.1,9.30426342]
[1747677242327,3.97876186,2513.4,2513.1,9.30426342]
[1747677242721,3.97857803,2513.5,2513.1,9.30426342]
[1747677242925,3.97832059,2513.7,2513.1,9.30426342]
[1747677242926,3.97832059,2513.7,2513.2,9.81652634]
[1747677243236,3.97772474,2514.0,2513.2,9.81652634]
[1747677243237,3.97855305,2513.5,2513.3,0.7575]
[1747677243810,3.9786743,2513.4,2513.3,0.7575]
[1747677244747,3.97859228,2513.5,2513.3,0.7575]
[1747677245234,3.9784897,2513.6,2513.3,0.7575]
[1747677245433,3.97772474,2514.0,2513.3,9.94532898]
[1747677245623,0.3024,2514.5,2513.3,1.94532898]
[1747677245824,3.97699957,2514.5,2514.1,8.0]
[1747677246024,3.97723602,2514.4,2514.2,8.862]
[1747677246226,3.97725012,2514.3,2514.2,8.862]
[1747677247561,4.27885411,2514.9,2514.2,8.862]
[1747677247741,3.97694688,2514.5,2514.2,8.862]
[1747677248060,3.97702489,2514.5,2514.2,8.862]
[1747677248211,3.97725012,2514.3,2514.2,8.862]
[1747677249047,3.97717582,2514.4,2514.2,8.862]
[1747677249249,0.3024,2514.9,2514.2,9.77872026]
[1747677249434,4.2780689,2515.3,2514.2,9.77872026]
[1747677249612,4.27813769,2515.3,2514.2,9.77872026]
[1747677249820,3.97616912,2515.0,2514.3,8.0]
[1747677250019,3.97702155,2514.5,2514.3,8.0]
[1747677250219,3.97702155,2514.5,2514.4,1.77787203]
[1747677250715,3.97709195,2514.4,2514.3,8.0]
[1747677250915,3.97756652,2514.1,2514.0,0.30520257]
[1747677251123,3.97748152,2514.2,2514.0,8.861]
[1747677251364,3.97756652,2514.1,2514.0,8.861]
[1747677251561,3.97788297,2513.9,2513.8,17.176]
[1747677251851,3.97788297,2513.9,2513.8,26.036]
[1747677252181,3.97788297,2513.9,2513.8,34.036]
[1747677253018,3.97780308,2514.0,2513.8,34.036]
[1747677253355,3.97775679,2514.0,2513.8,34.036]
[1747677253714,3.97788297,2513.9,2513.8,34.036]
[1747677254018,3.97788297,2513.9,2513.8,26.036]
[1747677255249,12.28028297,2513.9,2513.8,17.176]
[1747677255451,3.97819946,2513.7,2513.6,8.86]
[1747677255750,3.97899092,2513.2,2513.1,0.45334553]
[1747677257358,3.97914925,2513.1,2513.0,26.033]
[1747677259657,3.979061,2513.2,2513.0,26.033]
[1747677259859,3.97914925,2513.1,2513.0,26.034]
[1747677260831,3.97914925,2513.1,2513.0,17.173]
[1747677265060,0.3024,2514.1,2513.0,17.173]
[1747677265263,3.97858518,2513.5,2513.1,8.0]
[1747677265441,3.97858518,2513.5,2513.2,2.91522173]
[1747677265642,3.97858518,2513.5,2513.3,8.863]
[1747677265942,3.9786743,2513.4,2513.3,8.863]
[1747677266338,3.97852061,2513.5,2513.3,8.863]
[1747677266644,3.9784218,2513.6,2513.4,8.7771]
[1747677266951,3.97834863,2513.7,2513.5,1.76401]
[1747677267944,3.97835773,2513.6,2513.5,1.76401]
[1747677268124,3.97820508,2513.7,2513.4,0.7771]
[1747677268125,3.97851601,2513.5,2513.4,0.7771]
[1747677269062,3.97839393,2513.6,2513.4,0.7771]
[1747677269462,3.97839393,2513.6,2513.4,8.7771]
[1747677269463,3.97851601,2513.5,2513.4,8.7771]
[1747677270467,3.97846539,2513.6,2513.4,8.7771]
[1747677270763,3.97851601,2513.5,2513.4,8.7771]
[1747677270962,3.97851601,2513.5,2513.4,10.83263217]
[1747677271163,0.3024,2514.1,2513.4,10.83263217]
[1747677271336,3.97813951,2513.8,2513.4,10.83263217]
[1747677271536,3.97821431,2513.7,2513.4,10.83263217]
[1747677272280,3.97837712,2513.6,2513.4,10.83263217]
[1747677272481,3.97837712,2513.6,2513.5,1.96956322]
[1747677272696,3.97828175,2513.7,2513.5,1.96956322]
[1747677272987,3.97835773,2513.6,2513.5,1.96956322]
[1747677273536,3.97828381,2513.7,2513.5,1.96956322]
[1747677273960,3.97828381,2513.7,2513.4,0.7771]
[1747677274157,0.3024,2514.3,2513.5,3.9784406]
[1747677274344,8.0,2514.3,2513.6,3.97830725]
[1747677274554,3.97778799,2514.0,2513.5,3.97842115]
[1747677274775,3.97779915,2514.0,2513.5,3.97842115]
[1747677274936,4.27924365,2514.6,2513.7,0.7902]
[1747677275141,3.97740796,2514.3,2513.8,12.58696396]
[1747677275900,0.35211371,2514.9,2513.9,0.7827]
[1747677276049,3.9770454,2514.5,2514.0,21.1526446]
[1747677276390,3.97730365,2514.3,2514.1,2.59131553]
[1747677276574,3.97740832,2514.2,2514.1,8.0]
[1747677276741,3.97740832,2514.2,2514.1,16.608]
[1747677277479,3.97740832,2514.2,2514.1,8.608]
[1747677277666,3.97697743,2514.5,2514.1,8.608]
[1747677277884,3.97711035,2514.4,2514.1,8.608]
[1747677278176,3.97711035,2514.4,2514.2,2.5783]
[1747677278338,0.3024,2514.9,2514.1,8.608]
[1747677278339,3.97740832,2514.2,2514.1,8.608]
[1747677279270,3.97730463,2514.3,2514.1,8.608]
[1747677279884,3.97575786,2515.3,2512.9,0.20229603]
[1747677279885,3.97804121,2513.8,2512.9,0.20229603]
[1747677280051,16.77617362,2513.6,2512.9,0.20229603]
[1747677281291,3.9793076,2513.0,2512.9,0.20229603]
[1747677283709,3.97917204,2513.1,2512.9,0.20229603]
[1747677284079,3.97929786,2513.1,2512.9,0.20229603]
[1747677284407,3.97868822,2513.4,2512.9,4.18171924]
[1747677284641,3.97833794,2513.7,2513.1,3.97906448]
[1747677284904,3.97844196,2513.6,2513.1,8.0]
[1747677285078,3.97844196,2513.6,2513.1,11.97912584]
[1747677285279,3.97804121,2513.8,2513.1,11.97912584]
[1747677285280,3.97828069,2513.7,2513.2,2.00111258]
[1747677285482,3.97836148,2513.6,2513.3,8.61]
[1747677286490,3.97808701,2513.8,2513.3,8.61]
[1747677286491,3.97828074,2513.7,2513.3,8.61]
[1747677286690,3.97836057,2513.6,2513.3,8.61]
[1747677286895,0.3024,2513.9,2512.9,0.96029603]
[1747677287082,3.97843459,2513.6,2513.1,8.0]
[1747677287282,3.97869623,2513.4,2513.1,8.0]
[1747677287669,0.3024,2513.9,2513.1,9.7570296]
[1747677287874,3.97863202,2513.5,2513.1,8.0]
[1747677288075,3.97875718,2513.4,2513.1,8.0]
[1747677288283,0.04973519,2513.7,2512.9,0.96029603]
[1747677288499,3.97835773,2513.6,2513.0,8.609]
[1747677288688,4.2803403,2513.9,2513.2,3.97897826]
[1747677289018,3.97821644,2513.7,2513.2,6.03777609]
[1747677289220,4.2803252,2513.9,2513.2,2.05879783]
[1747677289409,3.97744677,2514.2,2513.2,2.05879783]
[1747677289410,3.97781076,2514.0,2513.5,4.76001404]
[1747677289605,4.27965303,2514.3,2513.6,8.609]
[1747677289813,3.97790981,2513.9,2513.6,8.609]
[1747677290209,3.97740832,2514.2,2513.6,8.609]
[1747677290526,3.97803283,2513.9,2513.6,8.609]
[1747677290891,3.97783299,2514.0,2513.6,8.609]
[1747677291092,0.3024,2514.3,2513.6,8.609]
[1747677291296,3.97795784,2513.9,2513.6,8.609]
[1747677291618,3.97781447,2514.0,2513.6,8.609]
[1747677292010,0.3024,2514.9,2513.7,8.0]
[1747677292190,0.3024,2514.9,2514.0,8.0]
[1747677292389,0.3024,2514.9,2514.1,8.609]
[1747677292590,3.97685818,2514.6,2514.1,12.58646964]
[1747677292890,3.97725012,2514.3,2514.2,8.609]
[1747677293086,0.04971753,2514.4,2513.7,0.7815]
[1747677293287,3.97764487,2514.1,2513.8,8.609]
[1747677293601,3.97775295,2514.0,2513.8,8.609]
[1747677293787,3.97775112,2514.0,2513.6,8.608]
[1747677294125,3.97783344,2514.0,2513.6,8.608]
[1747677294654,3.97783344,2514.0,2513.6,12.58633895]
[1747677294831,3.97709195,2514.4,2513.7,3.9781606]
[1747677295003,0.3024,2514.5,2513.7,8.0]
[1747677295319,4.27938308,2514.5,2513.8,3.97803652]
[1747677295524,3.97709195,2514.4,2513.8,3.97796521]
[1747677295696,3.97744244,2514.2,2513.8,3.97796521]
[1747677295917,3.97734251,2514.3,2513.8,5.6943608]
[1747677296122,3.97741389,2514.2,2513.8,5.6943608]
[1747677296318,3.97561234,2515.4,2513.9,0.7815]
[1747677296523,3.97669902,2514.7,2514.2,3.97738348]
[1747677296847,3.97671094,2514.7,2514.2,12.58534049]
[1747677297011,3.97681064,2514.6,2514.2,8.608]
[1747677298642,0.3024,2514.8,2514.2,8.608]
[1747677298845,3.976873,2514.6,2514.2,8.608]
[1747677299227,3.97669295,2514.7,2514.2,8.608]
[1747677299428,3.97678146,2514.6,2514.2,8.608]
[1747677299627,3.9766823,2514.7,2514.2,8.608]
[1747677299830,3.97685027,2514.6,2514.2,8.608]
[1747677300141,3.97694851,2514.5,2514.2,8.608]
[1747677300380,0.04971482,2514.6,2513.9,0.7815]
[1747677300513,3.97748354,2514.2,2513.7,8.535]
[1747677300710,3.97748354,2514.2,2513.7,16.535]
[1747677300952,3.97748354,2514.2,2513.8,8.0]
[1747677301319,3.97732472,2514.3,2513.8,8.0]
[1747677301831,3.9774098,2514.2,2513.7,16.535]
[1747677302028,3.97710095,2514.4,2513.3,17.63034553]
[1747677302029,0.04972237,2514.1,2513.3,17.63034553]
[1747677302228,3.9786743,2513.4,2513.3,0.45334553]
[1747677302420,4.0284107,2513.4,2513.3,0.45334553]
[1747677302750,3.9786743,2513.4,2513.3,0.45334553]
[1747677303110,3.97849161,2513.6,2513.3,0.45334553]
[1747677303354,3.94541589,2514.0,2513.3,0.45334553]
[1747677303355,3.97801566,2513.9,2513.3,0.45334553]
[1747677303664,4.27997487,2514.1,2513.4,12.51358665]
[1747677303815,3.97779999,2514.0,2513.4,12.51358665]
[1747677304450,4.28003733,2514.1,2513.4,12.51358665]
[1747677304751,3.97706325,2514.5,2513.8,4.74794455]
[1747677304965,3.97707891,2514.5,2513.9,8.535]
[1747677305113,3.97707891,2514.5,2513.9,12.51273414]
[1747677305318,3.97710257,2514.4,2513.9,12.51273414]
[1747677305552,3.97710257,2514.4,2513.9,8.535]
[1747677305756,3.97710257,2514.4,2513.9,12.51287319]
[1747677306065,4.74615334,2514.6,2513.9,12.51287319]
[1747677306066,3.97709185,2514.5,2513.9,12.51276807]
[1747677306219,3.97709185,2514.5,2513.9,14.18487824]
[1747677306421,3.97723651,2514.4,2513.9,1.67211017]
[1747677306719,3.97726219,2514.3,2513.9,1.67211017]
[1747677306961,3.97702454,2514.5,2513.9,5.64985737]
[1747677307183,3.97702454,2514.5,2513.9,3.9777472]
[1747677307451,3.97693378,2514.5,2513.9,3.9777472]
[1747677307659,3.97648118,2514.8,2514.2,3.97734437]
[1747677307853,0.8524,2515.2,2514.0,4.78150585]
[1747677307854,4.27144619,2515.0,2514.3,8.535]
[1747677308028,3.9768465,2514.6,2514.3,8.535]
[1747677308217,3.97668276,2514.7,2514.3,8.535]
[1747677308427,3.97681262,2514.6,2514.0,9.3388]
[1747677308764,0.04971504,2514.6,2514.0,15.84588921]
[1747677309067,3.97669357,2514.7,2514.0,15.84588921]
[1747677309463,4.02626324,2514.8,2514.1,3.97753732]
[1747677309691,3.97640191,2514.9,2514.2,3.97729682]
[1747677309971,3.97640191,2514.9,2514.2,3.97738405]
[1747677309972,3.97642761,2514.9,2514.2,3.97738405]
[1747677310266,3.97642761,2514.9,2514.2,5.5619478]
[1747677310429,0.3024,2515.2,2514.3,0.785]
[1747677310754,0.3024,2515.5,2514.3,12.76223793]
[1747677310968,0.3024,2515.5,2514.5,8.785]
[1747677311167,4.27785714,2515.5,2514.8,3.97637826]
[1747677311591,3.97551116,2515.4,2514.8,3.97637826]
[1747677311771,3.97551116,2515.4,2514.7,11.97653011]
[1747677312348,3.97551116,2515.4,2514.8,3.97645647]
[1747677313301,0.3024,2515.5,2514.6,13.78783137]
[1747677313302,0.3024,2515.5,2514.6,9.8112092]
[1747677313506,3.9757906,2515.3,2514.6,12.51177277]
[1747677313794,0.3024,2515.5,2514.6,8.535]
[1747677313951,4.27781061,2515.5,2514.8,3.97638093]
[1747677314558,0.3024,2515.5,2515.0,3.97604083]
[1747677314752,3.97509918,2515.7,2515.1,9.318]
[1747677314948,4.27738363,2515.8,2514.7,0.785]
[1747677314949,3.9752255,2515.6,2514.7,0.785]
[1747677315154,3.97589577,2515.2,2514.8,8.533]
[1747677315387,3.97600458,2515.1,2514.8,8.533]
[1747677315604,3.97591193,2515.2,2514.8,8.533]
[1747677315809,0.3024,2515.1,2514.6,8.0]
[1747677316097,3.97641164,2514.9,2514.6,8.0]
[1747677316265,3.97641164,2514.9,2514.5,17.174]
[1747677316266,3.97677563,2514.6,2514.5,17.174]
[1747677316449,3.97709195,2514.4,2514.3,8.533]
[1747677316783,0.3024,2515.1,2514.3,9.4648]
[1747677316987,0.3024,2515.1,2514.3,8.533]
[1747677316988,3.97669485,2514.7,2514.3,8.533]
[1747677317487,0.3024,2514.5,2514.1,8.533]
[1747677317662,3.97732125,2514.3,2514.1,8.533]
[1747677317979,3.97714604,2514.4,2514.1,8.533]
[1747677318185,0.3024,2514.5,2514.1,8.533]
[1747677318186,4.2793804,2514.5,2514.1,8.533]
[1747677318573,0.3024,2514.8,2514.1,9.82940677]
[1747677318774,3.97678156,2514.6,2514.1,13.80690626]
[1747677319287,3.97685404,2514.6,2514.1,13.80690626]
[1747677319463,3.97666703,2514.7,2514.2,3.97738117]
[1747677319668,4.02638006,2514.7,2514.2,3.97738117]
[1747677320094,0.55,2514.6,2513.3,1.38836114]
[1747677320302,3.97819946,2513.7,2513.4,8.533]
[1747677320467,0.3024,2514.3,2513.4,8.533]
[1747677320468,3.97835773,2513.6,2513.4,8.533]
[1747677321197,3.97835773,2513.6,2513.3,1.38836114]
[1747677321398,3.97835773,2513.6,2513.3,0.60336114]
[1747677321576,0.3024,2514.0,2513.3,8.60336114]
[1747677321771,0.3024,2514.0,2513.6,3.97834645]
[1747677322001,3.9778409,2514.0,2513.6,0.7884]
[1747677323598,3.97734761,2514.3,2513.7,12.51212674]
[1747677323783,3.97734761,2514.3,2513.8,8.0]
[1747677323784,3.97741453,2514.2,2513.8,8.0]
[1747677323994,3.97750307,2514.2,2513.8,8.0]
[1747677324766,3.97758263,2514.1,2513.7,8.0]
[1747677324966,3.97728852,2514.3,2513.8,8.534]
[1747677325164,4.27919231,2514.6,2513.6,9.3224]
[1747677325165,3.97797628,2513.9,2513.6,9.3224]
[1747677325704,4.49541589,2514.5,2513.6,9.3224]
[1747677325705,3.97784879,2514.0,2513.6,9.3224]
[1747677325880,3.97807532,2513.8,2513.6,9.3224]
[1747677326203,3.97791947,2513.9,2513.6,9.3224]
[1747677327302,3.97806367,2513.8,2513.6,9.3224]
[1747677327506,3.97819946,2513.7,2513.6,8.534]
[1747677327803,3.97804121,2513.8,2513.3,8.535]
[1747677327804,3.9786743,2513.4,2513.3,8.535]
[1747677328295,3.97908461,2513.2,2513.0,9.3667]
[1747677328495,0.3024,2513.7,2513.0,9.3667]
[1747677328496,3.97889541,2513.3,2513.0,9.3667]
[1747677329206,0.55,2513.6,2512.9,0.65564156]
[1747677329400,3.9793076,2513.0,2512.9,9.19164156]
[1747677329803,3.9793076,2513.0,2512.9,0.65564156]
[1747677330306,3.97917276,2513.1,2512.9,0.20229603]
[1747677330509,0.3024,2513.5,2512.9,1.03269603]
[1747677330712,0.3024,2513.7,2512.9,13.44514553]
[1747677330875,0.3024,2513.7,2513.0,14.12379685]
[1747677330876,3.97839071,2513.6,2513.0,14.12379685]
[1747677331075,3.97868707,2513.4,2513.0,10.14451455]
[1747677331305,3.97839071,2513.6,2513.0,14.12381807]
[1747677331608,3.97793652,2513.9,2513.5,8.0]
[1747677331905,3.97793652,2513.9,2513.6,8.433]
[1747677332221,0.3024,2514.4,2513.7,8.433]
[1747677332376,3.97791262,2513.9,2513.7,8.433]
[1747677332577,3.97804121,2513.8,2513.7,8.433]
[1747677333694,3.97786851,2514.0,2513.7,8.433]
[1747677333896,3.97789346,2513.9,2513.7,8.433]
[1747677335231,3.97716706,2514.4,2513.9,3.97774178]